bitfinex/quotes_ETHUSD_20220218
["timestamp","ask_amount","ask_price","bid_price","bid_amount"]
[1645220740190,0.81261747,2798.4,2798.2,0.00214831]
[1645220740987,0.81261747,2798.4,2798.1,1.51807076]
[1645220741195,0.81261747,2798.4,2798.2,0.00214831]
[1645220742193,0.81261747,2798.4,2798.1,1.51807076]
[1645220742391,0.81261747,2798.4,2798.2,0.00214831]
[1645220743396,0.13819997,2798.8,2798.6,1.61924064]
[1645220743637,0.13819997,2798.8,2798.7,1.51807076]
[1645220746040,0.9388124,2798.8,2798.7,1.51807076]
[1645220747783,0.9388124,2798.8,2798.7,1.51670123]
[1645220748081,0.8934761,2799.1,2798.7,1.51670123]
[1645220748281,4.43868232,2799.4,2798.7,1.51670123]
[1645220748282,3.73668232,2799.4,2798.7,1.51670123]
[1645220748685,1.94973022,2799.4,2798.7,1.51670123]
[1645220748883,1.78931908,2798.9,2798.7,1.51670123]
[1645220749584,0.8935266,2799.0,2798.7,1.51670123]
[1645220749783,1.94973022,2799.4,2798.7,1.51884916]
[1645220749986,0.8934518,2799.3,2798.7,1.51884916]
[1645220750580,0.8934518,2799.3,2798.7,1.51670123]
[1645220750783,0.78669722,2798.8,2798.7,1.51670123]
[1645220755185,1.08669722,2798.8,2798.7,1.51670123]
[1645220759536,1.08669722,2798.8,2798.6,1.62138861]
[1645220759731,1.98030722,2798.8,2798.6,1.62138861]
[1645220760134,5.66144722,2798.8,2798.6,1.61924064]
[1645220760333,0.515,2798.7,2798.6,1.61924064]
[1645220760535,0.515,2798.7,2798.6,1.62138865]
[1645220760834,7.0,2798.6,2797.7,0.65465952]
[1645220761136,1.78785,2798.4,2797.6,0.65465952]
[1645220761437,0.74207777,2797.6,2797.5,0.65465952]
[1645220761833,0.74207777,2797.6,2797.3,0.65465952]
[1645220762042,0.89399,2797.5,2797.3,0.65465952]
[1645220762296,1.19399,2797.5,2797.1,0.65465952]
[1645220762701,1.19399,2797.5,2797.0,0.65465952]
[1645220762902,5.515,2797.4,2797.2,0.00190731]
[1645220763302,1.7889852,2797.0,2796.3,4.15465952]
[1645220763498,0.515,2796.9,2796.4,0.00389867]
[1645220763704,1.94830604,2796.9,2796.2,0.00389867]
[1645220763900,0.80644825,2796.3,2796.0,0.65855819]
[1645220764099,2.73330604,2796.9,2796.6,0.81382618]
[1645220764299,2.40938,2796.8,2796.6,0.81382618]
[1645220764499,7.78878,2796.7,2795.9,0.00389867]
[1645220764708,0.8944796,2796.5,2795.9,0.00389867]
[1645220764998,0.815,2796.4,2795.7,0.65855819]
[1645220765199,0.815,2796.4,2795.8,0.00389867]
[1645220765400,0.89448,2796.3,2795.8,0.00389867]
[1645220765604,0.515,2796.2,2795.6,0.00389867]
[1645220765813,0.78822692,2796.0,2795.6,0.00389867]
[1645220766056,0.78822692,2796.0,2795.4,1.53505707]
[1645220766057,1.98276542,2796.0,2795.4,1.53895574]
[1645220766254,2.49776542,2796.0,2795.4,0.88429622]
[1645220766660,1.60322692,2796.0,2795.4,0.88429622]
[1645220767456,1.60322692,2796.0,2795.4,0.00389867]
[1645220767659,1.60322692,2796.0,2795.6,0.00214016]
[1645220767660,0.89457,2795.9,2795.6,0.00214016]
[1645220767859,0.515,2795.8,2795.6,0.00214016]
[1645220768058,1.4097,2795.8,2795.6,0.00214016]
[1645220768257,0.3,2795.7,2795.6,0.00214016]
[1645220768460,0.815,2795.7,2795.6,0.00214016]
[1645220768657,0.815,2795.7,2795.1,1.51952709]
[1645220768858,2.6843554,2795.5,2795.2,1.51952709]
[1645220769058,1.40979,2795.4,2795.3,1.51952709]
[1645220769258,1.40979,2795.4,2794.7,0.00389867]
[1645220769259,0.3,2795.3,2794.7,0.00389867]
[1645220769459,0.3,2795.3,2794.7,1.52360903]
[1645220769822,1.19477,2795.3,2794.8,1.51971036]
[1645220769999,0.515,2795.2,2794.8,1.52360903]
[1645220770202,0.515,2795.2,2794.9,1.52185106]
[1645220770398,0.515,2795.2,2794.9,0.0021407]
[1645220770800,0.82874894,2795.0,2794.9,0.0021407]
[1645220770999,1.34374894,2795.0,2794.7,1.51982554]
[1645220771200,0.8949,2794.9,2794.8,1.51982554]
[1645220771407,2.4099,2794.9,2794.5,0.00856394]
[1645220771599,2.4099,2794.9,2794.6,1.51987522]
[1645220772001,2.4099,2794.9,2794.5,0.00856394]
[1645220772199,4.1997004,2794.9,2794.6,1.51994701]
[1645220772403,0.89499,2794.7,2794.0,0.00389867]
[1645220772601,1.40999,2794.7,2794.6,0.00214089]
[1645220772799,2.40999,2794.7,2794.6,0.00214089]
[1645220773100,1.40999,2794.7,2794.6,0.00214089]
[1645220773299,2.40999,2794.7,2794.6,0.00214089]
[1645220773537,5.0949601,2794.7,2794.4,1.51999259]
[1645220773740,1.07898316,2794.6,2794.5,0.00214097]
[1645220774736,0.8951,2794.4,2793.9,0.00389867]
[1645220774940,0.8951,2794.4,2793.1,7.49]
[1645220774941,0.515,2794.3,2794.0,0.00856546]
[1645220775939,0.8950809,2794.1,2793.6,0.88778299]
[1645220776239,1.97474386,2794.1,2794.0,0.00214135]
[1645220776636,1.1950809,2794.1,2794.0,0.00214135]
[1645220776837,0.8950809,2794.1,2794.0,0.00214135]
[1645220777038,1.1950809,2794.1,2793.9,1.52016962]
[1645220777296,1.1950809,2794.1,2793.8,0.00389867]
[1645220777494,1.1950809,2794.1,2793.9,0.00214143]
[1645220778292,1.1950809,2794.1,2793.8,1.52016873]
[1645220778494,1.1950809,2794.1,2793.9,0.00214147]
[1645220779093,1.789891,2794.8,2793.9,0.00214147]
[1645220779295,0.515,2794.5,2793.9,0.00604014]
[1645220779494,0.515,2794.5,2793.9,0.00389867]
[1645220779694,0.515,2794.5,2794.2,0.00214124]
[1645220780693,0.515,2794.5,2794.0,1.52004217]
[1645220780895,0.515,2794.5,2794.2,0.0021412]
[1645220781536,0.64152909,2794.3,2794.2,0.0021412]
[1645220781835,0.64152909,2794.3,2793.4,0.00389867]
[1645220782037,0.64152909,2794.3,2793.4,1.52403457]
[1645220782235,0.64152909,2794.3,2794.1,0.00214127]
[1645220782835,0.515,2794.2,2794.1,0.00214127]
[1645220783035,0.515,2794.2,2793.7,0.00389867]
[1645220783434,0.515,2794.2,2794.1,0.00214131]
[1645220784134,2.43183909,2794.3,2794.1,0.00214131]
[1645220784135,1.32538898,2794.3,2794.1,0.00214131]
[1645220784333,1.32538898,2794.3,2793.8,0.00389867]
[1645220784334,0.515,2794.2,2793.8,0.00389867]
[1645220784540,1.41014,2794.2,2794.0,0.00214135]
[1645220785193,0.89509,2794.1,2794.0,0.00214135]
[1645220785590,1.7901876,2794.1,2793.8,0.00389867]
[1645220785794,1.7901876,2794.1,2793.9,0.00214143]
[1645220786296,0.3,2794.0,2793.9,0.00214143]
[1645220786492,1.7901876,2794.1,2793.9,0.00214143]
[1645220786692,1.7901876,2794.1,2793.7,0.00389867]
[1645220786894,1.7901876,2794.1,2793.8,0.0021415]
[1645220787993,1.7901876,2794.1,2793.6,0.81699265]
[1645220788193,1.7901876,2794.1,2793.8,0.0021415]
[1645220788847,0.815,2794.0,2793.8,0.0021415]
[1645220789044,1.79067,2793.9,2793.3,0.00389867]
[1645220789243,2.60574,2793.8,2793.3,0.00389867]
[1645220789441,2.60574,2793.8,2793.4,0.0085673]
[1645220790242,3.50113,2793.8,2793.2,0.00389867]
[1645220790447,0.895408,2793.7,2793.2,0.00389867]
[1645220790643,1.38777524,2793.6,2793.5,0.00214177]
[1645220791249,3.47866524,2793.6,2793.5,0.00214177]
[1645220791444,3.47866524,2793.6,2793.2,0.00389867]
[1645220791645,0.89547,2793.3,2792.8,3.50389867]
[1645220791842,0.515,2793.2,2792.8,0.00389867]
[1645220792044,0.73023156,2792.9,2792.7,1.51699849]
[1645220792304,0.78335672,2793.1,2793.0,0.38162055]
[1645220792490,1.29835672,2793.1,2793.0,0.38162055]
[1645220792794,1.29835672,2793.1,2792.0,0.5]
[1645220792795,0.8955672,2792.9,2792.0,0.5]
[1645220793002,7.0,2793.0,2792.9,0.00214004]
[1645220793201,8.0,2792.9,2791.5,3.0363]
[1645220793396,8.0,2792.9,2791.5,2.66499717]
[1645220793397,6.431,2791.7,2791.5,2.66499717]
[1645220793593,0.515,2791.6,2790.5,0.65465952]
[1645220793793,0.89627,2791.4,2790.9,0.71401301]
[1645220793993,0.515,2791.3,2790.9,0.71401301]
[1645220794193,1.0,2791.6,2790.9,0.71401301]
[1645220794194,2.4341777,2792.1,2790.9,0.71401301]
[1645220794392,0.515,2791.6,2790.9,0.71401301]
[1645220794794,3.20319,2791.6,2790.9,0.71401301]
[1645220794994,0.89607,2791.4,2790.2,0.01270117]
[1645220795198,0.89617,2791.2,2790.3,1.47853109]
[1645220795396,0.89617,2791.2,2789.5,0.88626914]
[1645220795397,0.515,2791.1,2790.4,1.47853109]
[1645220795798,0.515,2791.1,2789.6,0.65465952]
[1645220796049,0.65166376,2790.8,2790.3,0.75481663]
[1645220796250,0.65166376,2790.8,2790.4,1.47853109]
[1645220797253,3.34037796,2790.8,2790.4,1.47853109]
[1645220797447,2.6887142,2790.8,2790.3,0.75481663]
[1645220797747,2.6887142,2790.8,2790.5,0.00210259]
[1645220798447,1.792397,2790.9,2790.5,0.00210259]
[1645220798648,1.792397,2790.9,2790.4,1.47516452]
[1645220798850,1.792397,2790.9,2789.5,0.66721168]
[1645220799049,1.792397,2790.9,2790.5,0.00210255]
[1645220799050,0.89627,2790.6,2790.5,0.00210255]
[1645220799250,1.41127,2790.6,2790.5,0.00210255]
[1645220799900,1.41127,2790.6,2789.5,0.01255216]
[1645220800100,1.41127,2790.6,2789.9,0.88878457]
[1645220800101,0.83061231,2790.5,2789.9,0.88878457]
[1645220800305,1.41127,2790.6,2790.4,0.00210263]
[1645220801097,1.41127,2790.6,2789.9,0.88878457]
[1645220801402,0.8962898,2790.5,2790.4,0.00210266]
[1645220801701,2.3076798,2790.5,2790.4,0.00210266]
[1645220801905,7.0,2790.4,2789.9,0.00841192]
[1645220802099,0.515,2790.3,2789.9,0.00841192]
[1645220802296,1.515,2790.3,2788.7,1.1369]
[1645220802498,0.81803238,2789.6,2789.2,0.63406877]
[1645220802700,1.71461308,2789.6,2789.2,0.63406877]
[1645220802998,1.71461308,2789.6,2788.6,4.352]
[1645220803204,1.71461308,2789.6,2788.7,1.47503753]
[1645220803399,1.71461308,2789.6,2788.8,1.47503753]
[1645220803639,1.71461308,2789.6,2788.9,1.47503753]
[1645220803840,1.71461308,2789.6,2789.0,1.47503753]
[1645220804042,1.71461308,2789.6,2789.1,1.47503753]
[1645220804245,0.09075396,2789.6,2789.1,1.47503753]
[1645220804446,0.09075396,2789.6,2789.2,1.47503753]
[1645220804642,0.89658,2789.7,2789.1,0.84879586]
[1645220804842,0.8965807,2789.6,2789.2,1.44694045]
[1645220806254,0.8965807,2789.6,2789.3,0.00208486]
[1645220806444,1.41166,2789.5,2789.3,0.00208486]
[1645220807317,1.7933789,2789.7,2789.6,0.12764077]
[1645220807718,0.89674,2789.6,2789.3,0.00208486]
[1645220807921,4.015,2789.5,2789.3,0.00208486]
[1645220808131,4.33992632,2789.4,2789.3,0.00208486]
[1645220808424,3.25176632,2789.4,2788.2,4.5253]
[1645220808617,1.79387,2789.2,2788.8,0.00834068]
[1645220808818,2.69084,2789.2,2788.8,0.00834068]
[1645220809019,0.515,2789.1,2788.8,0.00834068]
[1645220809218,0.465,2789.1,2788.8,0.00834068]
[1645220809621,0.88094913,2788.8,2788.2,0.6366016]
[1645220809820,0.88094913,2788.8,2788.4,0.00834203]
[1645220810220,1.41189,2788.9,2788.4,0.00834203]
[1645220810419,1.41189,2788.9,2788.2,0.54494363]
[1645220811453,0.8968509,2788.8,2788.2,0.54494363]
[1645220812449,1.4118509,2788.8,2788.2,0.54494363]
[1645220814653,2.3087309,2788.8,2788.3,0.00206475]
[1645220815490,2.3087309,2788.8,2788.2,0.54494363]
[1645220815885,2.3087309,2788.8,2788.3,0.00206475]
[1645220816787,2.3087309,2788.8,2788.2,0.54494363]
[1645220816987,2.3087309,2788.8,2788.3,0.00206475]
[1645220817991,2.3087309,2788.8,2788.2,0.54494363]
[1645220818190,2.3087309,2788.8,2788.3,0.00206475]
[1645220818393,3.58768,2789.2,2788.3,0.00206475]
[1645220818394,0.89676,2789.2,2788.3,0.00206475]
[1645220818676,0.89676,2789.7,2788.3,0.00206475]
[1645220818677,0.51744751,2789.9,2788.3,4.87152857]
[1645220818876,0.51744751,2789.9,2788.4,4.86946382]
[1645220819064,0.51744751,2789.9,2788.4,5.315]
[1645220819065,0.00244751,2789.9,2788.4,5.315]
[1645220819269,2.7089,2790.0,2788.4,4.315]
[1645220819464,0.00244787,2789.9,2788.5,2.36980699]
[1645220819665,0.00244787,2789.9,2788.6,3.5]
[1645220819964,0.00244787,2789.9,2788.6,0.3]
[1645220820166,0.00244787,2789.9,2788.5,3.8]
[1645220820364,0.89649,2789.9,2788.5,3.8]
[1645220820565,0.89893797,2789.9,2788.6,0.89653]
[1645220820763,0.89893797,2789.9,2788.7,3.5]
[1645220821167,0.3,2789.8,2789.1,0.8317552]
[1645220822604,0.72811058,2789.6,2789.1,0.8317552]
[1645220822806,0.72811058,2789.6,2788.6,3.1148]
[1645220823006,1.24311058,2789.6,2788.4,3.5]
[1645220823206,1.24311058,2789.6,2788.3,4.58906475]
[1645220823504,1.24311058,2789.6,2788.4,3.50395588]
[1645220824105,1.19663,2790.0,2789.9,0.0812319]
[1645220824304,4.34945648,2790.0,2789.9,0.0812319]
[1645220824705,5.34945648,2790.0,2789.9,0.0812319]
[1645220825606,5.34945648,2790.0,2788.7,3.5]
[1645220825607,0.68319753,2789.3,2788.6,0.85104317]
[1645220825806,0.515,2789.5,2788.8,0.00395446]
[1645220826055,0.515,2789.5,2788.6,0.85499763]
[1645220826348,0.515,2789.5,2788.7,0.00395446]
[1645220827448,0.88257545,2789.4,2788.7,0.00395446]
[1645220831711,0.515,2789.5,2788.7,0.00395446]
[1645220832306,0.515,2789.5,2788.7,1.35662718]
[1645220832606,0.515,2789.5,2788.8,0.00395446]
[1645220835645,3.32145453,2789.9,2788.8,4.15861398]
[1645220835646,0.0024479,2789.9,2788.8,4.15861398]
[1645220835846,0.0024479,2789.9,2788.9,2.00733224]
[1645220836046,3.5914,2790.2,2788.9,2.00733224]
[1645220836047,3.5914,2790.2,2789.2,0.89631]
[1645220836250,0.00244804,2789.9,2789.3,4.85662718]
[1645220836448,0.00244804,2789.9,2789.4,1.35267272]
[1645220836646,0.00244804,2789.9,2789.6,0.88288267]
[1645220836849,0.00244804,2789.9,2789.7,1.35267272]
[1645220837301,0.72002953,2790.3,2789.7,1.35267272]
[1645220837302,1.72002953,2790.3,2789.7,1.35267272]
[1645220837503,0.00237032,2789.9,2789.8,1.35267272]
[1645220837706,0.00237032,2789.9,2789.8,1.35662718]
[1645220837902,0.00237032,2789.9,2789.8,1.35267272]
[1645220838102,0.00237032,2789.9,2789.3,0.00395446]
[1645220838303,2.6893966,2790.2,2789.3,0.81669731]
[1645220838503,2.6893966,2790.2,2789.4,1.35267272]
[1645220838702,0.00237031,2790.0,2789.5,0.00395446]
[1645220839510,0.89661,2789.9,2789.5,0.00395446]
[1645220839703,2.68988,2789.9,2789.5,0.00395446]
[1645220839904,2.64225033,2789.9,2789.5,0.00395446]
[1645220840103,1.0,2789.8,2789.5,1.35662718]
[1645220840306,1.0,2789.8,2789.6,1.35267272]
[1645220840505,1.0,2789.8,2789.1,0.65861398]
[1645220840506,0.71394649,2789.7,2789.1,0.65861398]
[1645220840705,0.71394649,2789.7,2789.2,2.03133221]
[1645220840904,0.896605,2790.0,2789.2,0.65465952]
[1645220841152,0.00244826,2789.9,2789.2,0.65465952]
[1645220841354,0.00244826,2789.9,2789.3,0.00395446]
[1645220841654,0.00244826,2789.9,2789.3,0.65861398]
[1645220841852,0.00244826,2789.9,2789.4,0.65465952]
[1645220842057,0.68545686,2790.1,2789.4,0.65861398]
[1645220842251,0.0024482,2789.9,2789.4,0.65861398]
[1645220842451,0.0024482,2789.9,2789.5,2.02737775]
[1645220842652,0.0024482,2789.9,2789.6,1.37271823]
[1645220842850,1.7955382,2789.9,2789.7,1.37271823]
[1645220843052,0.8989682,2789.9,2789.8,1.37271823]
[1645220843251,0.89652,2789.9,2789.8,1.37271823]
[1645220843453,0.89896826,2789.9,2789.7,1.37271823]
[1645220843851,0.89896826,2789.9,2789.8,1.37271823]
[1645220844052,0.89896826,2789.9,2789.6,0.65465952]
[1645220844251,0.89656,2790.0,2789.6,0.65465952]
[1645220844457,1.75363645,2790.1,2789.6,0.65465952]
[1645220844458,0.896498,2790.1,2789.6,0.65465952]
[1645220844655,0.89647,2790.2,2789.6,0.65465952]
[1645220844918,2.3354,2790.7,2789.7,2.02737775]
[1645220845117,1.1529,2790.7,2789.9,0.65465952]
[1645220845322,12.38381806,2791.1,2790.2,0.81178121]
[1645220845323,0.17006615,2790.6,2790.2,0.81178121]
[1645220845519,3.8544,2791.1,2790.3,2.26874823]
[1645220845820,0.1699839,2791.0,2790.4,1.37271823]
[1645220846016,2.3683,2791.7,2790.5,2.02737775]
[1645220846217,0.83194935,2791.6,2790.6,1.37271823]
[1645220846415,0.83194935,2791.6,2790.7,1.37271823]
[1645220846616,0.83194935,2791.6,2790.8,1.37271823]
[1645220846617,0.6616948,2791.4,2790.8,1.37271823]
[1645220846820,0.16994876,2791.3,2790.9,1.37271823]
[1645220847017,4.69125,2791.9,2791.0,1.37271823]
[1645220847225,0.16991777,2791.8,2791.1,4.87271823]
[1645220847424,0.16991777,2791.7,2791.2,1.37271823]
[1645220847618,0.6740361,2792.5,2791.5,5.0]
[1645220847818,0.66708937,2791.8,2791.1,3.5]
[1645220848021,0.66708937,2791.8,2790.9,5.0]
[1645220848220,0.66708937,2791.8,2790.7,1.96175765]
[1645220848419,0.66708937,2791.8,2790.9,5.0]
[1645220848859,0.8959906,2791.7,2790.9,5.0]
[1645220849557,0.00244793,2791.4,2790.7,5.46175765]
[1645220849762,0.00244793,2791.4,2791.3,5.0]
[1645220850457,1.0,2792.2,2791.3,5.0]
[1645220850660,0.00244792,2791.5,2791.3,5.0]
[1645220851660,0.73705392,2791.8,2791.3,5.0]
[1645220851859,0.00244791,2791.5,2791.3,5.0]
[1645220852310,0.00244791,2791.5,2791.4,3.5]
[1645220852707,4.791e-05,2791.5,2791.4,3.5]
[1645220852909,0.515,2792.6,2791.4,3.5]
[1645220853108,0.00244789,2791.6,2791.4,3.5]
[1645220853308,0.00244789,2791.6,2791.5,6.79112]
[1645220853508,0.00244789,2791.6,2791.5,5.3]
[1645220853907,0.00244789,2791.6,2791.5,6.14144326]
[1645220854109,0.65797003,2792.6,2791.5,6.14144326]
[1645220854309,0.65797003,2792.6,2791.9,5.0]
[1645220854612,0.65797003,2792.6,2791.5,0.84144326]
[1645220854613,0.8957554,2792.5,2791.5,0.84144326]
[1645220854814,0.515,2792.4,2791.5,0.84144326]
[1645220855611,0.89589,2792.2,2791.5,0.84144326]
[1645220855809,1.89589,2792.2,2791.5,5.84144326]
[1645220856347,3.30674,2792.2,2791.5,5.84144326]
[1645220856549,0.0024478,2792.0,2791.5,5.84144326]
[1645220856748,0.0024478,2792.0,2791.5,5.0]
[1645220856950,0.515,2791.9,2791.2,5.0]
[1645220857951,0.00234191,2791.7,2791.2,5.0]
[1645220858154,0.515,2791.6,2791.2,5.0]
[1645220859051,0.51734185,2791.6,2791.2,5.0]
[1645220860103,0.515,2791.6,2791.2,5.0]
[1645220860302,0.51734185,2791.6,2791.2,5.0]
[1645220860803,0.51734185,2791.6,2791.2,4.98565524]
[1645220861201,0.515,2791.6,2791.2,4.98565524]
[1645220861406,0.51734185,2791.6,2791.2,4.98565524]
[1645220862406,0.515,2791.6,2791.2,4.98565524]
[1645220862808,0.51735738,2791.6,2791.2,4.98565524]
[1645220863649,0.515,2791.6,2791.0,0.70907164]
[1645220863949,0.51735738,2791.6,2791.0,0.70907164]
[1645220864748,0.515,2791.6,2791.2,4.98565524]
[1645220864955,0.515,2791.6,2791.0,0.70907164]
[1645220865149,0.51735732,2791.6,2791.2,4.98565524]
[1645220866051,0.515,2791.6,2791.2,4.98565524]
[1645220866249,0.51735508,2791.6,2791.2,4.98565524]
[1645220867150,0.515,2791.6,2791.2,4.98565524]
[1645220867403,0.51735508,2791.6,2791.2,4.98565524]
[1645220867803,0.51735508,2791.6,2791.0,0.70907164]
[1645220868405,0.515,2791.6,2791.5,4.98565524]
[1645220868610,0.00235502,2791.6,2791.5,4.98565524]
[1645220868806,1.41087,2792.1,2791.6,1.00917786]
[1645220868807,0.515,2792.1,2791.6,1.00917786]
[1645220870709,1.0,2792.3,2791.6,1.00917786]
[1645220870909,0.07608083,2792.2,2791.6,5.9948331]
[1645220871162,1.7915585,2792.3,2791.6,1.00917786]
[1645220871360,0.97186103,2792.2,2791.7,4.98565524]
[1645220871560,0.89578,2792.2,2791.7,4.98565524]
[1645220871962,0.89578,2792.2,2791.6,1.00917786]
[1645220872162,0.8958329,2792.1,2791.6,1.00917786]
[1645220872363,0.07608818,2792.0,2791.6,1.00917786]
[1645220872766,0.89765847,2792.1,2791.6,1.00917786]
[1645220872963,0.5910916,2792.0,2791.6,1.00917786]
[1645220873262,0.0760916,2791.9,2791.6,1.00917786]
[1645220873464,0.71672285,2791.7,2791.6,1.00917786]
[1645220874061,1.30781739,2791.7,2791.6,1.00917786]
[1645220874262,1.23172285,2791.7,2791.6,1.00917786]
[1645220874465,2.23172285,2791.7,2791.6,1.00917786]
[1645220875608,3.12775285,2791.7,2791.6,1.00917786]
[1645220876410,3.66791726,2791.7,2791.6,1.00917786]
[1645220878029,0.07609997,2791.1,2790.0,4.98565524]
[1645220878224,0.85095866,2790.9,2790.1,2.18825139]
[1645220878425,0.85095866,2790.9,2790.3,0.00832489]
[1645220878426,0.515,2790.8,2790.3,0.00832489]
[1645220879268,0.515,2790.8,2790.2,4.98565524]
[1645220879466,0.515,2790.8,2790.1,0.72965192]
[1645220879467,1.4113328,2790.8,2790.3,1.45910003]
[1645220879667,1.4113328,2790.8,2790.1,0.72965192]
[1645220879668,3.3076728,2790.8,2790.1,0.72965192]
[1645220879868,3.3076728,2790.8,2790.2,1.45967656]
[1645220880266,0.89637,2790.7,2790.2,1.45967656]
[1645220880469,0.515,2790.6,2790.2,1.45967656]
[1645220880675,0.515,2790.6,2790.3,1.45967656]
[1645220880867,0.515,2790.6,2789.9,6.15878132]
[1645220880868,0.515,2790.6,2790.0,1.45967656]
[1645220881075,0.515,2790.6,2790.1,1.46026632]
[1645220881269,0.515,2790.6,2790.2,1.46026632]
[1645220881467,0.515,2790.6,2790.0,1.46026632]
[1645220881668,1.41135,2790.6,2790.0,1.46026632]
[1645220881868,2.41135,2790.6,2790.0,2.15401159]
[1645220882072,2.41135,2790.6,2790.1,1.46026632]
[1645220882307,0.8963659,2790.5,2790.2,1.46026632]
[1645220882507,0.3,2790.4,2790.3,1.46026632]
[1645220882907,0.3,2790.4,2790.0,1.46026632]
[1645220883310,0.3,2790.4,2790.0,2.34996642]
[1645220883507,0.3,2790.4,2790.1,1.46026632]
[1645220884407,1.19637,2790.4,2790.1,1.46026632]
[1645220885510,1.19637,2790.4,2790.2,4.98565524]
[1645220885709,1.19637,2790.4,2790.3,1.46026632]
[1645220885915,1.19637,2790.4,2790.1,1.46026632]
[1645220887369,1.19637,2790.4,2790.2,1.46026632]
[1645220887576,1.19637,2790.4,2790.3,1.46026632]
[1645220887772,1.19637,2790.4,2790.0,1.46026632]
[1645220888771,2.4113659,2790.5,2790.4,0.42750997]
[1645220889272,1.4113659,2790.5,2790.4,1.88777629]
[1645220889473,2.4113659,2790.5,2790.4,1.88777629]
[1645220889673,1.4113659,2790.5,2790.4,1.88777629]
[1645220889910,2.4113659,2790.5,2790.4,1.88777629]
[1645220890111,1.4113659,2790.5,2790.4,1.88777629]
[1645220890312,2.7113659,2790.5,2790.4,1.88777629]
[1645220890512,1.7113659,2790.5,2790.4,0.42750997]
[1645220890714,2.7113659,2790.5,2790.4,0.42750997]
[1645220893764,2.7113659,2790.5,2790.4,0.45035828]
[1645220894666,2.78749581,2790.5,2790.4,0.45035828]
[1645220898120,0.07612991,2790.5,2790.4,5.43601352]
[1645220898319,2.42254544,2790.9,2790.4,5.43601352]
[1645220898320,0.52620544,2790.9,2790.4,5.43601352]
[1645220898615,0.07611772,2790.8,2790.4,0.45035828]
[1645220898817,1.79223,2791.5,2790.7,4.98565524]
[1645220899015,11.23191152,2791.7,2790.4,0.45035828]
[1645220899016,0.07611465,2791.4,2790.9,0.81401723]
[1645220899215,4.75721296,2791.7,2790.9,0.81401723]
[1645220899216,0.07611465,2791.3,2790.9,0.81401723]
[1645220899421,0.896032,2791.5,2790.9,0.81401723]
[1645220899422,0.07611465,2791.2,2790.9,0.81401723]
[1645220899617,0.896032,2791.5,2791.1,4.98565524]
[1645220899816,0.07610759,2791.4,2791.1,4.98565524]
[1645220900719,0.97218759,2791.4,2790.9,5.79967247]
[1645220901079,0.37610759,2791.3,2790.9,0.81401723]
[1645220901266,0.07610759,2791.2,2790.9,0.81401723]
[1645220901475,0.07610759,2791.2,2791.1,4.98565524]
[1645220902276,12.3371536,2792.1,2791.1,6.42519278]
[1645220902277,0.00244757,2791.7,2791.1,6.42519278]
[1645220902469,0.00244757,2791.7,2791.5,4.98565524]
[1645220902970,0.00244757,2791.7,2791.6,0.77812571]
[1645220903169,0.07609857,2791.7,2791.6,0.77812571]
[1645220903568,0.00244786,2791.7,2791.6,0.77812571]
[1645220904573,0.37609857,2792.2,2791.6,0.77812571]
[1645220904824,0.00244785,2791.8,2791.6,0.77812571]
[1645220905028,0.00244785,2791.8,2791.5,4.98565524]
[1645220905627,0.07609857,2792.0,2791.5,4.98565524]
[1645220905825,1.86784857,2792.0,2791.5,4.98565524]
[1645220906026,0.00244785,2791.8,2791.5,4.98565524]
[1645220906429,0.07854642,2791.8,2791.5,4.98565524]
[1645220906825,0.07609857,2791.7,2791.5,4.98565524]
[1645220907025,0.07609857,2791.6,2791.5,4.98565524]
[1645220907425,2.09457165,2791.8,2791.5,4.98565524]
[1645220907426,0.97212857,2791.7,2791.5,4.98565524]
[1645220907630,0.07609857,2791.6,2791.3,0.02252897]
[1645220909065,0.07609857,2791.6,2791.3,0.0180632]
[1645220909270,0.97210857,2791.6,2790.9,0.84584099]
[1645220909466,0.97215857,2791.5,2790.9,0.84584099]
[1645220909669,0.07609857,2791.4,2790.9,0.84584099]
[1645220911269,0.97213857,2791.4,2790.9,0.84584099]
[1645220911480,0.07609857,2791.3,2790.9,0.84584099]
[1645220911670,0.07609857,2791.3,2791.2,4.98565524]
[1645220912072,0.3,2791.5,2791.2,6.42560863]
[1645220912311,0.30244757,2791.7,2791.2,4.98565524]
[1645220912312,0.07609762,2791.4,2791.2,4.98565524]
[1645220912512,0.00244757,2791.7,2791.2,4.98565524]
[1645220912712,0.00244757,2791.7,2791.5,4.98565524]
[1645220912912,0.07609429,2792.1,2791.6,0.66947563]
[1645220913116,0.07609429,2792.1,2791.7,4.98565524]
[1645220913317,0.07609429,2792.0,2791.7,4.98565524]
[1645220913613,0.07609429,2791.9,2791.7,4.98565524]
[1645220913813,0.6740361,2792.4,2791.7,4.98565524]
[1645220913814,0.07609429,2791.8,2791.7,4.98565524]
[1645220914417,0.00244782,2791.9,2791.7,4.98565524]
[1645220914812,0.07609429,2792.1,2791.7,4.98565524]
[1645220915014,0.37609429,2792.1,2791.7,4.98565524]
[1645220915212,0.07609429,2792.0,2791.7,4.98565524]
[1645220916474,0.07609429,2792.0,2791.6,0.66947563]
[1645220916671,0.07791806,2792.0,2791.6,0.61947563]
[1645220917274,0.07791806,2792.0,2791.9,4.98565524]
[1645220917676,0.07609429,2792.0,2791.9,4.98565524]
[1645220918175,0.07609429,2792.0,2791.3,4.98565524]
[1645220918377,0.07609429,2792.0,2791.1,1.2073]
[1645220918378,3.8770708,2791.9,2791.1,6.19295524]
[1645220918575,0.97221429,2791.8,2791.1,4.98565524]
[1645220918774,0.89604,2791.6,2791.1,4.98565524]
[1645220918978,0.07609429,2791.5,2791.1,4.98565524]
[1645220920017,0.07609429,2791.5,2791.2,0.81253653]
[1645220920416,0.97213299,2791.5,2791.2,0.81253653]
[1645220920820,0.07609429,2791.4,2791.1,4.98565524]
[1645220924273,0.07609429,2791.4,2791.3,0.02534501]
[1645220924979,0.07609429,2791.4,2791.3,5.01100025]
[1645220925574,0.07609429,2791.5,2791.3,5.01100025]
[1645220925974,0.07609429,2791.5,2791.3,0.02534501]
[1645220926177,0.07609429,2791.5,2791.3,5.01100025]
[1645220927535,0.07609429,2791.5,2791.3,0.02534501]
[1645220927833,1.86824889,2791.5,2791.3,0.02534501]
[1645220928031,0.97223429,2791.4,2791.3,0.02534501]
[1645220928233,1.27223429,2791.4,2791.3,0.02534501]
[1645220929033,1.27223429,2791.4,2791.3,0.02031603]
[1645220929232,1.991736,2791.4,2791.2,0.05028987]
[1645220929433,0.07609429,2791.3,2791.2,0.05028987]
[1645220929634,0.59109429,2791.3,2791.2,0.05028987]